bitfinex/quotes_SOLUSD_20250724
["timestamp","ask_amount","ask_price","bid_price","bid_amount"]
[1753385211004,0.03,189.32,189.31,8.56617483]
[1753385211400,0.03,189.32,189.31,9.25617483]
[1753385211587,0.03,189.32,189.31,17.82234966]
[1753385212104,0.03,189.32,189.31,43.82234966]
[1753385212291,0.03,189.32,189.31,49.10469079]
[1753385212711,0.03,189.32,189.31,14.53851596]
[1753385213032,0.03,189.32,189.31,9.25617483]
[1753385213316,8.59617483,189.32,189.27,0.69]
[1753385213518,8.59617483,189.32,189.28,0.69]
[1753385214090,8.56617483,189.3,189.24,6.7634]
[1753385214312,8.56617483,189.29,189.24,6.7634]
[1753385214695,13.84922011,189.29,189.24,6.0734]
[1753385214919,13.84922011,189.29,189.25,0.69]
[1753385216110,13.848826,189.3,189.26,0.69]
[1753385216334,5.28265117,189.3,189.26,0.69]
[1753385217518,8.56617483,189.3,189.26,0.69]
[1753385217895,8.56617483,189.31,189.27,0.67]
[1753385218503,8.56617483,189.3,189.27,0.67]
[1753385218915,13.84890036,189.3,189.27,0.67]
[1753385220418,8.56617483,189.28,189.22,0.73]
[1753385220622,17.28468397,189.29,189.22,0.73]
[1753385220623,8.56617483,189.24,189.22,0.06]
[1753385220806,26.0,189.26,189.22,0.06]
[1753385220807,64.4508588,189.23,189.22,0.06]
[1753385221005,42.78468397,189.2,189.19,0.06]
[1753385221211,51.63518194,189.2,189.19,0.06]
[1753385221409,17.06900711,189.19,189.18,1e-08]
[1753385221604,65.25518194,189.19,189.18,1e-08]
[1753385221811,17.56900711,189.19,189.18,1e-08]
[1753385222098,65.25518194,189.19,189.18,1e-08]
[1753385223005,70.54087357,189.19,189.18,1e-08]
[1753385223601,25.3508588,189.19,189.18,1e-08]
[1753385223826,61.1903756,189.19,189.18,1e-08]
[1753385224327,26.0,189.19,189.18,1e-08]
[1753385224518,8.56617483,189.2,189.18,1e-08]
[1753385224699,52.93143139,189.21,189.18,1e-08]
[1753385226167,25.3508588,189.2,189.18,1e-08]
[1753385226424,51.3508588,189.19,189.18,1e-08]
[1753385227426,56.63655043,189.19,189.18,1e-08]
[1753385227922,56.778712,189.19,189.18,1e-08]
[1753385228129,56.778712,189.19,189.11,0.06]
[1753385228130,42.78468397,189.14,189.11,0.06]
[1753385228323,17.06900711,189.12,189.11,0.06]
[1753385228812,56.13518194,189.12,189.11,1e-08]
[1753385229517,61.42282999,189.12,189.11,1e-08]
[1753385229833,60.92282999,189.12,189.11,1e-08]
[1753385230612,56.0,189.12,189.11,1e-08]
[1753385231409,34.56617483,189.12,189.11,1e-08]
[1753385231733,26.0,189.12,189.11,1e-08]
[1753385232327,31.28764805,189.12,189.11,1e-08]
[1753385233441,26.0,189.12,189.11,1e-08]
[1753385233931,0.28432314,189.16,189.11,1e-08]
[1753385233932,31.28652992,189.16,189.11,9.23617484]
[1753385234138,39.85270475,189.16,189.11,0.67000001]
[1753385234542,8.56617483,189.15,189.11,0.67000001]
[1753385235241,34.56617483,189.12,189.11,1e-08]
[1753385235447,18.50285472,189.16,189.11,1e-08]
[1753385235448,46.80652992,189.16,189.11,9.23617484]
[1753385235743,72.80652992,189.16,189.12,9.23617483]
[1753385235927,0.03,189.19,189.15,8.56617483]
[1753385236229,26.03,189.19,189.17,8.56617483]
[1753385236433,26.03,189.19,189.17,9.23617483]
[1753385236821,0.03,189.19,189.17,9.23617483]
[1753385237022,0.03,189.19,189.17,0.67]
[1753385237920,26.0,189.14,189.11,1e-08]
[1753385238117,8.56617483,189.12,189.11,1e-08]
[1753385238731,25.3508588,189.12,189.11,1e-08]
[1753385238926,67.81518194,189.12,189.11,1e-08]
[1753385239617,73.10282999,189.12,189.11,1e-08]
[1753385242260,73.10282999,189.12,189.04,0.2]
[1753385242261,149.28432314,189.11,189.04,0.2]
[1753385242554,25.63518194,189.05,189.04,0.2]
[1753385242733,60.20900711,189.05,189.04,0.2]
[1753385242934,68.77518194,189.05,189.04,0.2]
[1753385243119,69.27518194,189.05,189.04,0.2]
[1753385243324,60.70900711,189.05,189.04,0.2]
[1753385243525,17.06900711,189.05,189.04,0.2]
[1753385243757,8.56617483,189.06,189.04,0.2]
[1753385244222,43.06900711,189.05,189.04,0.2]
[1753385244425,51.63518194,189.05,189.04,0.2]
[1753385245753,52.13518194,189.05,189.04,0.2]
[1753385245956,43.56900711,189.05,189.04,0.2]
[1753385246161,51.63518194,189.05,189.04,0.2]
[1753385246340,56.92478786,189.05,189.04,0.2]
[1753385246660,51.63518194,189.05,189.04,0.2]
[1753385246835,34.56617483,189.05,189.04,0.2]
[1753385248755,26.0,189.05,189.04,0.9]
[1753385249261,26.0,189.06,189.04,0.9]
[1753385249442,22.07353154,189.08,189.05,0.7]
[1753385249640,13.8546858,189.09,189.05,0.7]
[1753385249841,26.0,189.07,189.06,0.7]
[1753385250144,43.0,189.11,189.06,0.7]
[1753385250145,19.54510607,189.12,189.06,9.26617483]
[1753385250351,19.54510607,189.12,189.04,0.2]
[1753385250352,51.48617483,189.14,189.07,0.7]
[1753385250539,26.0,189.09,189.07,0.7]
[1753385250741,30.63848511,189.13,189.07,0.7]
[1753385251042,26.0,189.12,189.07,9.26617483]
[1753385251450,30.63848511,189.13,189.07,8.56617483]
[1753385251647,26.0,189.1,189.08,0.7]
[1753385251850,26.0,189.1,189.09,0.7]
[1753385253663,31.28732774,189.14,189.09,9.26617483]
[1753385253849,39.85350257,189.14,189.09,8.56617483]
[1753385254052,39.85350257,189.14,189.1,0.7]
[1753385254765,26.0,189.12,189.11,0.7]
[1753385255263,8.56617483,189.18,189.11,8.56617483]
[1753385255463,8.56617483,189.14,189.04,0.2]
[1753385255762,8.56617483,189.14,189.08,8.56617483]
[1753385255966,8.56617483,189.15,189.09,9.26617483]
[1753385256140,0.03,189.14,189.09,9.26617483]
[1753385256345,8.56617483,189.13,189.1,0.7]
[1753385256548,5.28760961,189.13,189.1,0.7]
[1753385256942,8.56617483,189.11,189.04,0.2]
[1753385257159,8.56617483,189.1,189.05,0.7]
[1753385257461,8.56617483,189.11,189.06,0.7]
[1753385257658,8.56617483,189.11,189.07,0.7]
[1753385257852,200.18617483,189.12,189.08,0.7]
[1753385258069,191.62,189.12,189.08,0.7]
[1753385258262,25.63518194,189.11,189.04,0.2]
[1753385258468,5.28843244,189.1,189.06,0.06]
[1753385258653,13.88460727,189.1,189.06,0.06]
[1753385259050,25.3508588,189.08,189.06,0.06]
[1753385259252,8.56617483,189.07,189.06,0.06]
[1753385259466,25.8508588,189.07,189.06,0.06]
[1753385259773,44.53895068,189.1,189.06,0.06]
[1753385259774,8.56617483,189.08,189.06,0.06]
[1753385260369,82.44460727,189.1,189.07,0.7]
[1753385260680,26.0,189.08,189.07,0.7]
[1753385261746,0.03,189.1,189.07,0.7]
[1753385261970,26.0,189.09,189.08,0.7]
[1753385263159,0.03,189.1,189.08,0.7]
[1753385263469,0.03,189.1,189.09,0.7]
[1753385263470,26.03,189.1,189.09,0.7]
[1753385263875,0.03,189.1,189.09,9.26617483]
[1753385265074,0.03,189.1,189.09,14.55466179]
[1753385265585,0.03,189.1,189.09,5.98848696]
[1753385265753,0.03,189.1,189.09,14.55466179]
[1753385269483,0.03,189.1,189.06,0.06]
[1753385269673,0.03,189.1,189.06,0.76]
[1753385269976,0.03,189.1,189.07,0.7]
[1753385270178,0.03,189.1,189.07,9.26617483]
[1753385270358,0.03,189.1,189.08,0.7]
[1753385270557,0.03,189.1,189.08,9.26617483]
[1753385270758,0.03,189.1,189.09,0.7]
[1753385270954,0.03,189.1,189.06,0.76]
[1753385271176,0.03,189.1,189.06,9.32617483]
[1753385272174,0.03,189.1,189.06,0.76]
[1753385272488,34.56617483,189.08,189.06,0.06]
[1753385272696,26.0,189.08,189.06,0.06]
[1753385273990,26.0,189.08,189.06,0.76]
[1753385274175,8.59617483,189.1,189.06,0.76]
[1753385274374,0.03,189.1,189.06,0.76]
[1753385274771,0.03,189.1,189.07,0.7]
[1753385275385,8.59617483,189.1,189.07,0.7]
[1753385276295,8.59617483,189.1,189.06,0.06]
[1753385276664,8.59617483,189.1,189.07,0.7]
[1753385276665,0.03,189.1,189.07,0.7]
[1753385278182,0.03,189.1,189.06,0.06]
[1753385278183,0.03,189.1,189.08,0.65]
[1753385278386,0.03,189.1,189.09,0.65]
[1753385280402,0.03,189.1,189.06,9.27617483]
[1753385280580,0.03,189.1,189.07,0.65]
[1753385280786,0.03,189.1,189.06,0.06]
[1753385280978,8.56617483,189.07,189.06,0.06]
[1753385281182,8.56617483,189.08,189.06,0.06]
[1753385281381,25.3808588,189.1,189.06,0.06]
[1753385281594,16.81468397,189.1,189.06,0.71]
[1753385281778,25.3808588,189.1,189.06,0.71]
[1753385281978,25.3808588,189.1,189.07,9.21617483]
[1753385281979,0.03,189.1,189.07,9.21617483]
[1753385282279,0.03,189.1,189.08,0.65]
[1753385282700,0.03,189.1,189.07,8.56617483]
[1753385282882,0.03,189.1,189.08,0.65]
[1753385283083,8.59617483,189.1,189.06,0.06]
[1753385283284,0.03,189.1,189.06,0.06]
[1753385283485,8.59617483,189.1,189.06,0.06]
[1753385284296,25.8808588,189.1,189.06,0.06]
[1753385284887,25.3808588,189.1,189.06,0.71]
[1753385285094,22.1029634,189.1,189.06,0.71]
[1753385285293,30.66913823,189.1,189.06,0.71]
[1753385285895,8.56617483,189.07,189.06,0.06]
[1753385286221,16.78468397,189.09,189.06,0.71]
[1753385286400,0.03,189.1,189.07,0.65]
[1753385286599,0.03,189.1,189.08,0.65]
[1753385286910,0.03,189.1,189.07,0.65]
[1753385287211,5.31821446,189.1,189.07,0.65]
[1753385287414,5.31821446,189.1,189.06,0.06]
[1753385287881,5.31821446,189.1,189.06,0.71]
[1753385288081,5.31821446,189.1,189.07,0.65]
[1753385288278,0.03,189.1,189.07,0.65]
[1753385288482,0.03,189.1,189.08,0.65]
[1753385289384,0.03,189.1,189.09,0.65]
[1753385291695,0.03,189.1,189.09,9.21617483]
[1753385291998,0.03,189.1,189.09,14.50466179]
[1753385293753,0.03,189.1,189.09,30.77743662]
[1753385293892,0.03,189.1,189.09,31.06175976]
[1753385294416,0.03,189.1,189.09,30.77743662]
[1753385294794,0.03,189.1,189.09,9.21617483]
[1753385295109,0.03,189.1,189.09,0.65]
[1753385295414,0.03,189.1,189.08,8.56617483]
[1753385295708,0.03,189.1,189.08,9.21617483]
[1753385296604,0.03,189.1,189.08,0.65]
[1753385296808,0.03,189.1,189.08,9.21617483]
[1753385297007,0.03,189.1,189.08,0.65]
[1753385297207,0.03,189.1,189.08,9.21617483]
[1753385297396,0.03,189.1,189.08,13.85484978]
[1753385297605,0.03,189.1,189.09,9.21617483]
[1753385299327,0.03,189.1,189.09,14.50466179]
[1753385302807,0.03,189.1,189.09,23.07083662]
[1753385303519,0.03,189.1,189.09,23.35515976]
[1753385303715,0.03,189.14,189.11,7.7192]
[1753385303939,0.03,189.14,189.13,8.56617483]
[1753385304608,0.03,189.14,189.13,9.50049797]
[1753385305311,0.03,189.14,189.13,31.57255041]
[1753385305512,0.03,189.18,189.14,17.06900711]
[1753385305721,0.03,189.18,189.17,8.56617483]
[1753385305909,0.03,189.18,189.17,50.26617483]
[1753385306104,0.03,189.18,189.17,50.91617483]
[1753385307404,0.03,189.18,189.17,56.20242529]
[1753385310613,0.03,189.19,189.17,99.2714324]
[1753385310811,0.03,189.19,189.18,34.90135677]
[1753385311118,0.03,189.19,189.18,17.76900711]
[1753385311321,0.03,189.19,189.18,28.32646575]
[1753385311500,0.03,189.22,189.18,28.32646575]
[1753385311501,0.03,189.22,189.19,0.28432314]
[1753385311702,0.03,189.22,189.21,5.27872932]
[1753385312118,0.03,189.22,189.21,5.97872932]
[1753385312838,0.03,189.22,189.21,11.26386224]
[1753385313038,0.03,189.22,189.21,11.54818538]
[1753385313214,0.03,189.23,189.21,11.54818538]
[1753385313215,0.03,189.23,189.21,14.58413279]
[1753385313409,0.03,189.23,189.22,9.29899987]
[1753385314640,0.03,189.23,189.22,14.58385347]
[1753385316818,0.03,189.23,189.22,9.29899987]
[1753385317937,0.03,189.23,189.22,14.58385347]
[1753385318435,0.03,189.23,189.22,9.29899987]
[1753385318931,0.03,189.23,189.22,14.58385347]
[1753385321048,0.03,189.23,189.22,55.70385347]
[1753385324645,0.03,189.23,189.22,14.58385347]
[1753385324846,0.03,189.23,189.22,50.31899987]
[1753385326017,0.03,189.23,189.22,55.60385347]
[1753385327449,0.03,189.23,189.21,0.06]
[1753385327746,0.03,189.23,189.22,40.88]
[1753385328327,0.53,189.23,189.21,0.06]
[1753385328531,0.53,189.23,189.21,40.98]
[1753385329126,0.03,189.23,189.21,40.98]
[1753385332837,0.03,189.23,189.21,49.57899987]
[1753385335040,0.03,189.23,189.22,9.29899987]
[1753385335237,0.03,189.23,189.22,5.97987613]
[1753385335942,0.53,189.23,189.21,0.06]
[1753385336143,5.7848536,189.22,189.21,0.06]
[1753385336638,11.06472973,189.22,189.21,0.06]
[1753385337140,22.85386071,189.22,189.21,0.06]
[1753385337338,28.13373684,189.22,189.21,0.06]
[1753385337646,58.13373684,189.22,189.21,0.06]
[1753385338325,28.13373684,189.22,189.21,0.06]
[1753385338646,22.85386071,189.22,189.21,0.06]
[1753385338832,28.13373684,189.22,189.21,0.06]
[1753385341343,58.13373684,189.22,189.21,0.06]
[1753385343341,98.89373684,189.22,189.21,0.06]
[1753385343850,68.89373684,189.22,189.21,0.06]
[1753385345931,68.85373684,189.22,189.21,0.06]
[1753385346332,63.57386071,189.22,189.21,0.06]
[1753385346532,68.85373684,189.22,189.21,0.06]
[1753385346946,40.56472973,189.22,189.21,0.06]
[1753385347130,70.84,189.22,189.21,0.06]
[1753385347327,6.87313621,189.23,189.21,0.06]
[1753385347948,0.03,189.23,189.21,0.06]
[1753385348154,10.59453545,189.23,189.21,0.06]
[1753385348639,5.27987613,189.22,189.21,0.06]
[1753385348840,5.77987613,189.22,189.21,0.06]
[1753385349343,5.27987613,189.22,189.21,0.06]
[1753385349546,0.5,189.22,189.21,0.06]
[1753385349749,22.84888324,189.22,189.21,0.06]
[1753385350563,28.13373684,189.22,189.21,0.06]
[1753385351358,58.13373684,189.22,189.21,0.06]
[1753385352550,98.85373684,189.22,189.21,0.06]
[1753385352936,40.56472973,189.22,189.21,0.06]
[1753385353136,81.28472973,189.22,189.21,0.06]
[1753385353946,98.35373684,189.22,189.21,0.06]
[1753385354153,98.85373684,189.22,189.21,0.06]
[1753385356333,55.10356319,189.22,189.21,0.06]
[1753385356538,101.60343932,189.22,189.21,0.06]
[1753385357344,95.53924005,189.22,189.21,0.06]
[1753385357553,100.81911618,189.22,189.21,0.06]
[1753385357756,100.96127775,189.22,189.21,0.06]
[1753385357954,98.21157527,189.22,189.21,0.06]
[1753385358363,98.35373684,189.22,189.21,0.06]
[1753385358558,68.35373684,189.22,189.21,0.06]
[1753385359664,63.07386071,189.22,189.21,0.06]
[1753385359866,46.0048536,189.22,189.21,0.75]
[1753385360362,46.0048536,189.22,189.21,0.06]
[1753385361064,10.56472973,189.22,189.21,0.06]
[1753385361962,28.13373684,189.22,189.21,0.06]
[1753385363046,84.13373684,189.22,189.21,0.06]
[1753385365866,83.63373684,189.22,189.21,0.06]
[1753385366167,93.8494137,189.22,189.21,0.06]
[1753385366549,88.71169914,189.22,189.21,0.06]
[1753385366850,88.85386071,189.22,189.21,0.06]
[1753385367048,71.7848536,189.22,189.21,0.06]
[1753385367561,71.8148536,189.22,189.21,0.06]
[1753385369262,101.8148536,189.22,189.21,0.06]
[1753385369472,71.8148536,189.22,189.21,0.06]
[1753385369671,76.93472973,189.22,189.21,0.06]
[1753385369984,0.03,189.22,189.21,0.75]
[1753385371268,0.03,189.22,189.21,0.06]
[1753385371772,0.03,189.22,189.21,5.33987613]
[1753385373648,0.03,189.22,189.21,10.62500905]
[1753385373875,0.03,189.22,189.21,0.06]
[1753385376363,0.03,189.22,189.21,0.75]
[1753385380975,0.03,189.22,189.21,6.02987613]
[1753385381470,0.03,189.22,189.21,11.31500905]
[1753385387177,0.03,189.22,189.21,6.03513292]
[1753385387377,0.03,189.22,189.21,11.31500905]
[1753385389084,0.03,189.22,189.21,6.03513292]
[1753385389273,0.03,189.22,189.21,11.31500905]
[1753385393396,0.03,189.22,189.21,19.27820905]
[1753385394472,0.03,189.22,189.21,58.93820905]
[1753385395778,0.03,189.22,189.21,0.06]
[1753385395984,0.03,189.22,189.21,45.68987613]
[1753385397284,0.03,189.22,189.21,50.97500905]
[1753385399101,0.03,189.22,189.21,93.75969302]
[1753385399402,0.03,189.26,189.25,26.0]
[1753385399608,0.03,189.27,189.25,70.83987613]
[1753385399811,0.03,189.27,189.26,6.48824979]
[1753385400171,0.03,189.27,189.26,11.76812592]
[1753385400607,0.03,189.27,189.26,11.77198644]
[1753385400781,0.03,189.27,189.26,17.05186257]
[1753385401495,0.03,189.35,189.28,42.78468397]
[1753385401690,0.03,189.35,189.29,62.15285002]
[1753385401885,0.03,189.35,189.29,70.74845002]
[1753385402208,0.03,189.35,189.31,42.78468397]
[1753385402517,0.03,189.35,189.31,48.59279421]
[1753385402679,0.03,189.35,189.31,54.55513534]
[1753385403097,0.03,189.35,189.31,67.76098817]
[1753385403275,0.03,189.35,189.34,5.27987613]
[1753385403481,0.03,189.35,189.34,44.81987613]
[1753385403882,0.03,189.35,189.34,39.54]
[1753385404192,0.56,189.35,189.34,39.54]
[1753385404400,0.28432314,189.34,189.26,0.68]
[1753385404603,5.27987613,189.32,189.27,39.54]
[1753385404800,5.80987613,189.32,189.27,39.54]
[1753385404980,0.53,189.32,189.27,39.54]
[1753385405187,0.53,189.32,189.27,40.22]
[1753385405390,5.28206995,189.32,189.27,40.22]
[1753385405888,5.28206995,189.32,189.27,39.54]
[1753385406105,5.28206995,189.32,189.28,0.68]
[1753385406297,5.28206995,189.32,189.27,39.54]
[1753385406502,5.27987613,189.29,189.21,7.57119424]
[1753385406708,0.53,189.28,189.23,5.28457432]
[1753385406886,5.80987613,189.28,189.24,39.54]
[1753385407084,5.80987613,189.27,189.24,39.54]
[1753385407279,0.53,189.26,189.24,39.54]
[1753385407485,5.27987613,189.27,189.24,39.54]
[1753385407692,5.80987613,189.28,189.24,39.54]
[1753385408705,11.37757844,189.28,189.24,39.54]
[1753385408922,5.27987613,189.27,189.24,39.54]
[1753385409117,5.80987613,189.27,189.24,39.54]
[1753385409897,10.84757844,189.28,189.24,39.54]
[1753385410095,6.81547613,189.3,189.25,0.68]
[1753385410718,7.34547613,189.3,189.26,0.06]
[1753385411244,5.28290833,189.29,189.26,0.06]
[1753385411596,5.56419927,189.31,189.27,0.68]
[1753385411797,0.03,189.32,189.29,5.27987613]
[1753385412033,0.03,189.32,189.3,0.68]
[1753385412529,0.03,189.32,189.3,5.95987613]
[1753385413538,0.03,189.32,189.3,0.68]
[1753385413887,0.03,189.32,189.31,5.95987613]
[1753385415513,0.03,189.32,189.31,5.27987613]
[1753385416317,0.03,189.32,189.31,5.95987613]
[1753385416930,0.03,189.32,189.31,45.49987613]
[1753385417228,0.03,189.32,189.27,5.95987613]
[1753385417431,0.03,189.32,189.28,39.54]
[1753385417849,0.03,189.32,189.28,45.49987613]
[1753385419949,0.03,189.32,189.28,44.81987613]
[1753385420242,5.27987613,189.29,189.26,0.06]
[1753385420422,5.27987613,189.28,189.26,0.06]
[1753385420839,5.80987613,189.28,189.26,0.06]
[1753385421151,6.09419927,189.27,189.26,0.06]
[1753385421531,22.87888324,189.27,189.26,0.06]
[1753385421935,28.16234073,189.27,189.26,0.06]
[1753385424051,22.8824646,189.27,189.26,0.06]
[1753385424234,10.56310557,189.28,189.26,0.06]
[1753385424439,29.56577847,189.3,189.26,0.74]
[1753385424440,10.56274585,189.3,189.26,0.74]
[1753385424827,30.0,189.27,189.26,0.06]
[1753385425638,5.27987613,189.27,189.26,0.06]
[1753385425827,22.87888324,189.27,189.26,0.06]
[1753385427532,52.87888324,189.27,189.26,0.06]
[1753385427733,58.16234073,189.27,189.26,0.06]
[1753385430053,30.0,189.27,189.26,0.78]
[1753385430541,40.56333362,189.27,189.26,0.06]
[1753385430743,57.87801759,189.27,189.26,0.06]
[1753385431055,17.19062509,189.19,189.17,0.06]
[1753385431226,67.46443623,189.18,189.17,0.06]
[1753385431431,26.0,189.15,189.07,0.2]
[1753385431657,45.59987613,189.14,189.07,0.2]
[1753385431861,46.35419927,189.14,189.07,0.2]
[1753385432061,68.42597216,189.14,189.13,1e-08]
[1753385432444,42.78468397,189.1,189.07,0.2]
[1753385432655,5.56419927,189.08,189.07,0.2]
[1753385432856,22.34888324,189.08,189.07,0.2]
[1753385433044,22.81888324,189.08,189.07,0.2]
[1753385433243,26.16585668,189.08,189.07,0.2]
[1753385434042,31.45462333,189.08,189.07,0.2]
[1753385434244,31.45462333,189.08,189.06,0.06]
[1753385434245,17.06900711,189.07,189.06,1e-08]
[1753385434475,17.06900711,189.07,188.99,0.06]
[1753385434476,43.06900711,189.04,188.99,0.06]
[1753385434764,8.62684957,189.01,188.99,0.06]
[1753385434968,0.47,189.07,189.0,0.72]
[1753385435263,49.19117271,189.04,189.0,0.72]
[1753385435862,49.19117271,189.04,189.01,0.72]
[1753385436054,49.19117271,189.04,188.99,0.06]
[1753385436055,8.62684957,189.03,188.99,0.06]
[1753385436254,8.62684957,189.03,189.0,0.72]
[1753385436651,8.91117271,189.04,189.0,0.72]
[1753385437257,48.88684957,189.07,189.01,9.34684957]
[1753385437563,48.88684957,189.07,189.02,0.72]
[1753385438168,13.91591257,189.07,189.03,0.72]
[1753385439546,0.28432314,189.08,189.04,0.72]
[1753385439775,8.62684957,189.07,189.04,0.72]
[1753385440770,26.28432314,189.08,189.04,0.72]
[1753385440947,34.91117271,189.08,189.04,0.72]
[1753385441147,40.19996658,189.08,189.04,0.72]
[1753385441747,34.91117271,189.08,189.04,0.72]
[1753385441978,40.20010057,189.08,189.04,0.72]
[1753385442262,34.91117271,189.08,189.04,0.72]
[1753385442464,40.12,189.12,189.06,8.62684957]
[1753385442765,0.14216157,189.11,189.06,9.34684957]
[1753385442966,8.76901114,189.11,189.06,8.62684957]
[1753385443168,0.28432314,189.11,189.07,0.72]
[1753385443367,14.19924478,189.11,189.07,0.72]
[1753385444267,5.57239521,189.11,189.07,0.72]
[1753385444472,14.19924478,189.11,189.07,0.72]
[1753385444767,8.62684957,189.08,189.02,8.62684957]
[1753385444964,8.91117271,189.07,189.02,0.72]
[1753385445155,14.20037526,189.07,189.03,0.72]
[1753385445471,8.62684957,189.06,189.0,9.34684957]
[1753385445772,8.62684957,189.05,189.0,0.72]
[1753385447351,8.62684957,189.04,189.0,0.72]
[1753385447560,13.91661548,189.05,189.01,0.72]
[1753385448254,5.28976591,189.05,189.01,0.72]
[1753385448456,13.91618971,189.06,189.02,0.72]
[1753385448655,53.93618971,189.06,189.02,0.72]
[1753385448851,53.93618971,189.06,189.03,0.72]
[1753385449950,40.02,189.06,189.03,0.72]
[1753385450158,48.64684957,189.06,189.03,0.72]
[1753385451071,39.98,189.07,189.04,0.72]
[1753385451779,39.98,189.07,189.05,0.72]
[1753385451972,22.0725918,189.12,189.06,9.34684957]
[1753385452151,8.62684957,189.15,189.09,8.62684957]
[1753385452477,39.9,189.15,189.1,9.34684957]
[1753385452666,39.9,189.15,189.1,8.62684957]
[1753385452863,45.18683523,189.15,189.11,0.72]
[1753385453066,45.18683523,189.15,189.1,8.62684957]
[1753385453067,0.47,189.14,189.09,8.62684957]
[1753385453260,9.09684957,189.13,189.07,8.62684957]
[1753385453565,8.62684957,189.13,189.07,0.72]
[1753385453761,8.62684957,189.13,189.07,9.34684957]
[1753385454578,5.28764805,189.12,189.07,9.34684957]
[1753385454779,5.28764805,189.12,189.07,0.72]
[1753385454970,5.28764805,189.12,189.07,9.34684957]
[1753385455155,8.62684957,189.1,189.04,9.34684957]
[1753385455354,0.47,189.11,189.01,73.0181]
[1753385455355,9.38117271,189.09,189.01,73.0181]
[1753385455558,9.09684957,189.08,189.01,51.58874701]
[1753385455777,0.28432314,189.09,189.04,8.62684957]
[1753385456161,8.91117271,189.09,189.05,0.72]
[1753385456679,5.28876665,189.08,189.03,9.34684957]
[1753385457377,13.91561622,189.08,189.03,0.72]
[1753385457682,48.50684957,189.11,189.05,8.62684957]
[1753385457874,48.50684957,189.11,189.06,0.71]
[1753385458363,48.50684957,189.11,189.07,0.71]
[1753385458557,53.79483114,189.11,189.05,8.62684957]
[1753385459279,53.79483114,189.11,189.04,0.71]
[1753385459479,8.62684957,189.1,189.04,9.33684957]
[1753385459784,8.62684957,189.09,189.04,0.71]
[1753385460659,8.62684957,189.1,189.05,9.33684957]
[1753385460859,8.62684957,189.1,189.06,0.71]
[1753385460860,39.74,189.1,189.06,0.71]
[1753385461176,39.74,189.1,189.07,0.71]
[1753385462084,5.28807783,189.11,189.06,8.62684957]
[1753385462280,45.00807783,189.11,189.08,0.71]
[1753385462582,45.00807783,189.11,189.06,8.62684957]
[1753385462984,45.00807783,189.11,189.06,9.33684957]
[1753385464685,39.66,189.12,189.07,8.62684957]
[1753385464885,5.28674894,189.16,189.11,8.62684957]
[1753385465077,39.62,189.16,189.13,8.62684957]
[1753385465260,39.62,189.16,189.13,9.33684957]
[1753385465461,39.62,189.16,189.14,9.33684957]
[1753385466368,8.62684957,189.16,189.11,8.62684957]
[1753385466679,0.78432314,189.15,189.1,9.33684957]
[1753385466883,0.31432314,189.15,189.1,8.62684957]
[1753385467070,0.31432314,189.15,189.11,9.33684957]
[1753385467477,0.31432314,189.15,189.12,8.62684957]
[1753385467782,5.60117971,189.15,189.12,8.62684957]
[1753385468382,5.60117971,189.15,189.09,0.71]
[1753385468585,6.07117971,189.15,189.1,8.62684957]
[1753385468912,6.07117971,189.15,189.1,9.33684957]